Cogmind - Beta 15 @@@ ROGUE MODE // 2025.08.06 @ 14:55:46 Player: Zoe Result: Destroyed by G-34 Mercenary with Small Laser Performance ------------- Evolutions (0) 0 Regions Visited (4) 800 Robots Destroyed (32) 160 Value Destroyed (586) 586 Prototype IDs (25) 500 Alien Tech Used (0) 0 Bonus (300) 300 TOTAL SCORE: 2346 Bonus ------- Aligned with FarCom 300 Cogmind --------- Core Integrity 0/250 Matter 183/300 Energy 100/100 System Corruption 5% Temperature Cool (6) Movement Walking (120) Location -9/Mines Parts ------- > --- POWER (1) -------- (None) > --- PROPULSION (2) --- Aluminum Leg > --- UTILITY (2) ------ Small Storage Unit Transport Network Coupler > --- WEAPON (2) ------- Heavy Assault Rifle > --- INVENTORY (8) ---- Aluminum Leg Signal Interpreter Hacking Suite Heavy Assault Rifle Rocket Launcher Datajack Field Lobotomy Kit (5) Mining Laser Peak State ------------ > --- POWER ------------ Light Ion Engine > --- PROPULSION ------- Aluminum Leg Aluminum Leg > --- UTILITY ---------- Small Storage Unit Transport Network Coupler > --- WEAPON ----------- Heavy Assault Rifle Heavy Assault Rifle > --- INVENTORY -------- Aluminum Leg Signal Interpreter Hacking Suite Heavy Assault Rifle Rocket Launcher Datajack Field Lobotomy Kit Mining Laser [Rating: 11] Favorites ----------- Power Light Ion Engine Engine Light Ion Engine Propulsion Aluminum Leg Leg Aluminum Leg Utility Small Storage Unit Device Improved Terrain Scanner Storage Small Storage Unit Processor Transport Network Coupler Weapon Particle Cannon Energy Gun Medium Laser Energy Cannon Particle Cannon Ballistic Gun Heavy Assault Rifle Ballistic Cannon Light Cannon Special Weapon Mining Laser Special Melee Weapon Datajack Build | -11 -10 -10 -10 -9 ------- Run | Yrd Mat Min Exi Min Slots Evolved . | . . . . . Power . | . . . . . Propulsion . | . . . . . Utility . | . . . . . Weapon . | . . . . . Parts Attached 27 | 7 17 . 1 2 Power 3 | 1 2 . . . Engine 3 | 1 2 . . . Core . | . . . . . Reactor . | . . . . . Propulsion 7 | 2 5 . . . Treads . | . . . . . Leg 7 | 2 5 . . . Wheel . | . . . . . Hover . | . . . . . Flight . | . . . . . Utility 4 | 2 2 . . . Device 1 | 1 . . . . Storage 2 | 1 1 . . . Processor 1 | . 1 . . . Hackware . | . . . . . Protection . | . . . . . Artifact . | . . . . . Weapon 13 | 2 8 . 1 2 Energy Gun 2 | 2 . . . . Energy Cannon 4 | . 4 . . . Ballistic Gun 3 | . . . 1 2 Ballistic Cannon 2 | . 2 . . . Launcher . | . . . . . Special Weapon 1 | . 1 . . . Impact Weapon . | . . . . . Slashing Weapon . | . . . . . Piercing Weapon . | . . . . . Special Melee Weapon 1 | . 1 . . . Unidentified Prototypes . | . . . . . Parts Lost 4 | . 1 . . 3 Power 1 | . . . . 1 Propulsion 1 | . . . . 1 Utility 1 | . 1 . . . Weapon 1 | . . . . 1 Highest Loss Streak 3 | . 1 . . 3 To Critical Strikes . | . . . . . Average Backups 7 | 4 7 8 8 8 Power . | . . . . . Propulsion 1 | 2 1 1 1 1 Utility 1 | . . 2 2 2 Weapon 3 | 1 4 4 3 3 Tool/Special . | . . . . . Unused Backups 11 | . 6 . . 5 Power . | . . . . . Propulsion 3 | . 2 . . 1 Utility 2 | . . . . 2 Weapon 5 | . 4 . . 1 Tool/Special 1 | . . . . 1 Average Slot Usage (%) 98 | . 98 100 100 95 Engine 13 | . 14 14 14 12 Leg 27 | . 27 28 28 26 Device 1 | . 4 . . . Storage 16 | . 20 14 14 14 Processor 8 | . 2 14 14 14 Energy Gun 4 | . 8 . . . Energy Cannon 9 | . 11 18 3 . Ballistic Gun 4 | . . . 10 20 Ballistic Cannon 2 | . 6 . . . Special Weapon 6 | . . 9 13 6 Peak Build Rating 11 | 9 10 10 10 11 Average Rating 9 | 4 8 9 9 10 On Entrance 7 | . 9 10 9 10 Naked Turns . | . . . . . Heaviest Build 21 | 13 21 16 13 14 Greatest Support 20 | 20 20 20 20 20 Greatest Overweight (x) 6 | 2 6 . . . Average Overweight (x) . | . . . . . Largest Inventory Capacity 8 | 8 8 8 8 8 Average Capacity 7 | 7 8 8 8 8 Most Carried 8 | 8 8 8 8 8 Average Carried 7 | 4 7 7 7 8 Final Capacity 8 | 8 8 8 8 8 Final Carried 8 | 5 8 8 8 8 Class Distribution -------------------- 63% | Scavenger-Mutant 36% | Mutant Dominant Class ---------------- Mutant | -10/Materials Scavenger-Mutant | -10/Mines Scavenger-Mutant | -10/Exiles Scavenger-Mutant | -9/Mines Resources | -11 -10 -10 -10 -9 ----------- Run | Yrd Mat Min Exi Min Matter Collected 753 | 270 447 10 . 26 Remotely . | . . . . . Salvage Created 1066 | 139 830 . . 97 Parts 61 | 10 44 . . 7 Haulers Intercepted 2 | . 2 . . . Recyclers Shooed . | . . . . . Parts Field Recycled . | . . . . . Retrieved Matter . | . . . . . Parts Self-Destructed . | . . . . . Prevented . | . . . . . Kills | -11 -10 -10 -10 -9 ------- Run | Yrd Mat Min Exi Min Combat Hostiles Destroyed 18 | . 17 . . 1 Guns 8 | . 7 . . 1 Cannons 10 | . 10 . . . Classes Destroyed 8 | 2 5 . . 1 Builder 2 | . . . . 2 Tunneler 3 | 3 . . . . Hauler 2 | . 2 . . . Recycler 4 | 1 3 . . . Operator 2 | . 2 . . . Watcher 1 | . 1 . . . Swarmer 8 | . 8 . . . Grunt 10 | . 9 . . 1 Best Kill Streak 5 | 3 5 . . 2 Combat Bots Only 4 | . 4 . . 1 Max Kills in Single Turn 2 | 2 2 . . 1 Gunslinging . | . . . . . Exploded . | . . . . . Melee . | . . . . . Uniques/NPCs Destroyed . | . . . . . Combat | -11 -10 -10 -10 -9 -------- Run | Yrd Mat Min Exi Min Hostile Shots Fired 84 | . 61 . . 23 Missed 19 | . 12 . . 7 Hits 65 | . 49 . . 16 Projectile 65 | . 49 . . 16 Critical Strikes 2 | . 1 . . 1 Damage Taken 1075 | . 524 . . 551 Core 258 | . 146 . . 112 Absorbed by Shields . | . . . . . Core Remaining (%) 100 | 100 . . . . Volleys Fired 96 | 7 59 4 . 26 Largest 2 | 2 2 1 . 2 Hottest 136 | 90 136 100 . 123 Shots Fired 167 | 14 112 4 . 37 Gun 77 | 14 42 . . 21 Cannon 66 | . 66 . . . Launcher . | . . . . . Special 24 | . 4 4 . 16 Kinetic 41 | . 20 . . 21 Thermal 99 | 7 72 4 . 16 Explosive . | . . . . . Electromagnetic 27 | 7 20 . . . Robot Hit Streak 11 | 8 11 . . 7 Robot Miss Streak 5 | 1 5 . . 2 Penetration Max . | . . . . . Secondary Targets 3 | . 3 . . . Max Gunslinging Chain 1 | . 1 . . . Shots Hit Robots 87 | 10 65 . . 12 Core Hits 38 | 5 28 . . 5 Critical Kills . | . . . . . Critical Parts Destroyed . | . . . . . Critical Strikes 3 | 1 2 . . . Burn 2 | 1 1 . . . Blast 1 | . 1 . . . Melee Attacks 7 | . 6 . . 1 Impact . | . . . . . Slashing . | . . . . . Piercing . | . . . . . Sneak Attacks 4 | . 3 . . 1 Combat Hostiles . | . . . . . Follow-up Attacks . | . . . . . Damage Inflicted 1353 | 141 1040 . . 172 Guns 686 | 141 373 . . 172 Cannons 667 | . 667 . . . Explosions . | . . . . . Melee . | . . . . . Ramming . | . . . . . Kinetic 330 | . 158 . . 172 Thermal 748 | 63 685 . . . Explosive . | . . . . . Electromagnetic 275 | 78 197 . . . Impact . | . . . . . Slashing . | . . . . . Piercing . | . . . . . Highest Corruption 5 | . . . . 5 Average Corruption 5 | . . . . 5 Corruption Purged . | . . . . . Corruption Blocked . | . . . . . Effects 1 | . . . . 1 Matter Fused 1 | . . . . 1 Overload Shots . | . . . . . Overflow Damage . | . . . . . Projectiles . | . . . . . Explosions . | . . . . . Melee . | . . . . . Knockbacks 3 | . 3 . . . Impact . | . . . . . Kinetic 3 | . 3 . . . Secondary . | . . . . . Self-Inflicted Damage . | . . . . . Shots . | . . . . . Rammed . | . . . . . Targets Rammed . | . . . . . Kicked . | . . . . . Crushed . | . . . . . Highest Temperature 595 | 114 595 42 . 73 Average Temperature 109 | 50 146 21 . 31 Received Heat Transfer 261 | . 135 . . 126 Effects 21 | . 21 . . . Shutdowns 2 | . 2 . . . Energy Bleed 1 | . 1 . . . Interference 3 | . 3 . . . Matter Decay 3 | . 3 . . . Short Circuit 3 | . 3 . . . Damage (minor) 1 | . 1 . . . Damage (major) 7 | . 7 . . . Damage (core) 1 | . 1 . . . Siege Activations . | . . . . . Martial Activations . | . . . . . Shielding Activations . | . . . . . Robots Disrupted . | . . . . . Combat Hostiles . | . . . . . Robots Corrupted . | . . . . . Combat Hostiles . | . . . . . Parts Fried . | . . . . . Impact Corruptions . | . . . . . Robots Melted . | . . . . . Combat Hostiles . | . . . . . Parts Melted 4 | . 4 . . . Heat Transferred 1776 | 259 1517 . . . Parts Sabotaged . | . . . . . Parts Stolen . | . . . . . Parts Stripped . | . . . . . Power Chain Reactions . | . . . . . Alert | -11 -10 -10 -10 -9 ------- Run | Yrd Mat Min Exi Min Maximum Alert Level 1 | . 1 . . . Low Security (%) 88 | 100 81 100 . 100 Level 1 11 | . 18 . . . Level 2 . | . . . . . Level 3 . | . . . . . Level 4 . | . . . . . Level 5 . | . . . . . High Security . | . . . . . Max Security . | . . . . . Peak Influence 328 | 10 328 117 . 30 Initial 117 | . 3 117 . . Average 85 | 2 127 32 . 1 Influence Increases 738 | 20 668 3 . 47 Destroy 0b10 Robot/C 360 | . 340 . . 20 Destroy 0b10 Robot/NC 70 | 20 40 . . 10 Destroy Leader 86 | . 76 . . 10 Successful Hack 26 | . 26 . . . Disable Machine 30 | . 30 . . . Destroy Structure 16 | . 6 3 . 7 Lose Combat Pursuer 150 | . 150 . . . Influence Decreases 708 | 15 370 306 . 17 Entered New Map 188 | . 2 186 . . Time Decay 510 | 15 358 120 . 17 Lost Part 10 | . 10 . . . Squads Dispatched 2 | . 2 . . . Investigation 1 | . 1 . . . Extermination . | . . . . . Reinforcement 1 | . 1 . . . Assault . | . . . . . Garrison . | . . . . . Intercept . | . . . . . Searches Triggered . | . . . . . Construction Impeded . | . . . . . Haulers Reinforced . | . . . . . Active Scanning Responses . | . . . . . Cargo Convoy Interrupts . | . . . . . Stealth | -11 -10 -10 -10 -9 --------- Run | Yrd Mat Min Exi Min Distress Signals . | . . . . . Communications Jammed . | . . . . . Distress Signals . | . . . . . Times Spotted 34 | . 31 . . 3 Peak Tracking Total 4 | . 4 . . 3 Tactical Retreats 8 | . 8 . . . Traps | -11 -10 -10 -10 -9 ------- Run | Yrd Mat Min Exi Min Traps Triggered 1 | . 1 . . . Indirectly . | . . . . . Trap Hack Attempts . | . . . . . Triggered . | . . . . . Disarmed . | . . . . . Reprogrammed . | . . . . . Reused . | . . . . . Traps Extracted . | . . . . . Installed . | . . . . . Triggered . | . . . . . Machines | -11 -10 -10 -10 -9 ---------- Run | Yrd Mat Min Exi Min Machines Disabled 2 | . 2 . . . Max in Single Turn 1 | . 1 . . . Machines Repaired . | . . . . . Machines Dismantled . | . . . . . Machines Sabotaged . | . . . . . Overloaded Fab Kills . | . . . . . Hacking | -11 -10 -10 -10 -9 --------- Run | Yrd Mat Min Exi Min Machines Accessed 9 | . 8 . 1 . Terminals 6 | . 6 . . . Fabricators . | . . . . . Repair Stations . | . . . . . Recycling Units 2 | . 2 . . . Scanalyzers . | . . . . . Garrison Access . | . . . . . Total Hacks 33 | . 32 . 1 . Successful 22 | . 21 . 1 . Failed 11 | . 11 . . . Catastrophic . | . . . . . Database Lockouts . | . . . . . Manual 27 | . 26 . 1 . Terminals 30 | . 30 . . . Fabricators . | . . . . . Repair Stations . | . . . . . Recycling Units 2 | . 2 . . . Scanalyzers . | . . . . . Garrison Access . | . . . . . Terminal Hacks 8 | . 7 . 1 . Record 1 | . 1 . . . Prototype ID Bank 1 | . 1 . . . Branch Access Points 1 | . 1 . . . Terminal Index 1 | . 1 . . . Investigation Status 1 | . 1 . . . Reinforcement Status 1 | . 1 . . . Zone Layout 1 | . 1 . . . Proto ID Catalog 1 | . . . 1 . Fabricator Hacks . | . . . . . Repair Station Hacks . | . . . . . Recycling Unit Hacks . | . . . . . Scanalyzer . | . . . . . Garrison Access Hacks . | . . . . . Unauthorized Hacks 14 | . 14 . . . Terminals 12 | . 12 . . . Track 6 | . 6 . . . Botnet 6 | . 6 . . . Fabricators . | . . . . . Repair Stations . | . . . . . Recycling Units 2 | . 2 . . . Reject 2 | . 2 . . . Scanalyzers . | . . . . . Garrison Access . | . . . . . Data Cores Recovered 1 | . 1 . . . Used . | . . . . . Hacking Detections 5 | . 5 . . . Full Trace Events 3 | . 3 . . . Feedback Events . | . . . . . Feedback Blocked . | . . . . . Robot Schematics Acquired . | . . . . . Robots Built . | . . . . . Authchips . | . . . . . Time . | . . . . . Total Robot Build Rating . | . . . . . Part Schematics Acquired . | . . . . . Parts Built . | . . . . . Authchips . | . . . . . Time . | . . . . . Total Part Build Rating . | . . . . . Parts Repaired . | . . . . . Time . | . . . . . Parts Recycled . | . . . . . Recycled Matter . | . . . . . Retrieved Matter . | . . . . . Retrieved Components . | . . . . . Parts Scanalyzed . | . . . . . Part Schematics Acquired . | . . . . . Parts Damaged . | . . . . . Bothacking | -11 -10 -10 -10 -9 ------------ Run | Yrd Mat Min Exi Min Used RIF Installer . | . . . . . Robots Hacked 4 | . 3 . . 1 Non-combat 4 | . 3 . . 1 Combat . | . . . . . Robot Hacks Applied 5 | . 4 . . 1 parse_system 2 | . 2 . . . no_distress 3 | . 2 . . 1 Relay Couplers Released . | . . . . . Fabnet Peak Effective % . | . . . . . Robots Rewired . | . . . . . Allies Hacked . | . . . . . Hacks Repelled . | . . . . . Allies | -11 -10 -10 -10 -9 -------- Run | Yrd Mat Min Exi Min Total Allies . | . . . . . Largest Group . | . . . . . Highest-Rated Group . | . . . . . Highest-Rated Ally . | . . . . . Total Orders . | . . . . . Ally Attacks . | . . . . . Total Damage . | . . . . . Kills . | . . . . . Allies Corrupted . | . . . . . Allies Melted . | . . . . . Intel | -11 -10 -10 -10 -9 ------- Run | Yrd Mat Min Exi Min Active Infowar (turns) 1970 | . 557 461 754 198 Terrain 344 | . 344 . . . T.N.C. 1626 | . 213 461 754 198 Robot Analysis Total . | . . . . . Derelict Logs Recovered 1 | . . 1 . . Drone Launches . | . . . . . Drone Recoveries . | . . . . . Exploration | -11 -10 -10 -10 -9 ------------- Run | Yrd Mat Min Exi Min Turns Passed 2665 | 97 1155 461 754 198 Spaces Moved 1736 | 55 619 369 616 77 Core 27 | 25 2 . . . Treads . | . . . . . Legs 1709 | 30 617 369 616 77 Wheels . | . . . . . Hover . | . . . . . Flight . | . . . . . Fastest Speed 50 | 50 120 120 120 120 Average Speed 124 | 106 135 120 120 120 Slowest Speed 350 | 150 350 120 120 120 Overloaded Moves . | . . . . . Propulsion Burnouts . | . . . . . Robots Hopped . | . . . . . Potential Cave-ins 6 | . . . . 6 Cave-ins Triggered 1 | . . . . 1 Exploration Rate (%) 55 | 3 86 77 92 20 Regions Visited 4 Branch Regions 3 Pre-discovered Areas 1 | . . 1 . . Known Exits Taken 1 | . 1 . . . Unknown Exits Taken 3 | 1 . 1 1 . Scrap Searched 1 | . . 1 . . Spaces Dug 24 | . 4 4 . 16 Terrain Destroyed 24 | . 4 4 . 16 Melee . | . . . . . Projectile 24 | . 4 4 . 16 AOE . | . . . . . Terrain Rammed . | . . . . . Walls Destroyed . | . . . . . Machines Disabled . | . . . . . Actions | -11 -10 -10 -10 -9 --------- Run | Yrd Mat Min Exi Min Total 2013 | 78 820 375 630 110 Wait 68 | . 68 . . . Move 1732 | 54 618 368 615 77 Hop . | . . . . . Pick Up 32 | 10 20 1 1 . Fast Attach 6 | 2 4 . . . Attach 8 | 5 2 . 1 . Detach 1 | . 1 . . . Swap 26 | . 17 1 2 6 Drop 27 | . 25 1 1 . Fire 96 | 7 59 4 . 26 Melee 7 | . 6 . . 1 Ram . | . . . . . Kick . | . . . . . Crush . | . . . . . Escape Stasis . | . . . . . Rewire 10 | . . . 10 . Trap . | . . . . . Miscellaneous . | . . . . . Route ------- -11/Scrapyard -10/Materials (discovered 4 exits: [*Mat x3] / *Min) -10/Mines (discovered 3 exits: [*Mat x2] / *Exi) -10/Exiles (discovered 2 exits: [*Min x2]) -9/Mines History --------- Turn | Location | Event 5 | -11/Scrapyard | Discovered new exit (range 14) 98 | -11/Scrapyard | Entered Materials 199 | -10/Materials | Discovered new exit (range 3) 301 | -10/Materials | Build established: Mutant 346 | -10/Materials | Discovered new exit (range 11) 598 | -10/Materials | Derelicts attacked the area 708 | -10/Materials | Identified exit to Mines 981 | -10/Materials | Discovered new exit (range 4) 1143 | -10/Materials | Core integrity fell below 50% 1253 | -10/Materials | Entered Mines 1261 | -10/Mines | Learned location of Storage (-7) 1329 | -10/Mines | Build established: Scavenger-Mutant 1472 | -10/Mines | Received a Rocket Launcher from a helpful Derelict 1480 | -10/Mines | Discovered new exit (range 10) 1677 | -10/Mines | Discovered new exit (range 7) 1708 | -10/Mines | Deemed a non-threat by the Exiles lab entrance 1708 | -10/Mines | Discovered new exit (range 5) 1714 | -10/Mines | Entered Exiles 1732 | -10/Exiles | Discovered new exit (range 15) 1768 | -10/Exiles | Met 8R-AWN 1789 | -10/Exiles | Met EX-HEX 1825 | -10/Exiles | Met EX-BIN 1848 | -10/Exiles | Aligned with FarCom system 1849 | -10/Exiles | Given EX-Vault access code 1900 | -10/Exiles | Opened EX-Vault 1908 | -10/Exiles | Found Field Lobotomy Kit 1933 | -10/Exiles | Warned to stay clear of 0b10 Research branches 1969 | -10/Exiles | Met EX-DEC 2065 | -10/Exiles | Discovered new exit (range 12) 2163 | -10/Exiles | Visited The Gauntlet 2468 | -10/Exiles | Left Exiles lab with Field Lobotomy Kit 2468 | -10/Exiles | Entered Mines 2518 | -9/Mines | Found a hidden stash of uninstalled traps 2630 | -9/Mines | Crushed by falling debris 2630 | -9/Mines | Core integrity fell below 20% 2666 | -9/Mines | Destroyed by G-34 Mercenary with Small Laser Last Messages --------------- U-05 Engineer builds a Wall. Sneak attack on U-05 Engineer. Jacked U-05 Engineer... >>no_distress Distress signal routine blocked. U-05 Engineer destroyed. Acquired 26 matter. The unstable cave ceiling collapses. Crushed by falling debris. Lgt. Ion Engine destroyed. System corrupted by crushing effect (+5). System corrupted: Matter fused (-5). The unstable cave ceiling collapses. U-05 Engineer destroyed. Aluminum Leg destroyed. The unstable cave ceiling collapses. Critical hit (Burn: +37). Hvy. Assault Rifle destroyed. G-47 Trooper destroyed. U-05 Engineer builds a Wall. Map ----- +----------------------------------------------------+ | ??????????????# ########???????????????????? | | ??????????????# #???????????????????? | | ??????????????# #???????????????????? | | ??????????????######## #???????????????????? | | ?????????????????????# #???????????????????? | | ?????????????????????# #???????????????????? | | ?????????????????##### # ##???????????????? | | ????????????###### #???????????????? | | ???????????## #??????????????? | | ????????#### #??????????????? | | ????????### #### ##### ##??????????????? | | ???????## ##??## #????##???????????????? | | ???##### ##???## #?????????????????????? | | ??## ##???# #?????????????????????? | | ??# ##??# ????????????????????? | | ??# & #??# ###???????????????????? | | ??## & #### #?????????????????????? | | ???####### &!!### #?????????????????????? | | ?????????### ! ### ?????????????????????? | | ???????????## *#### ??#??????????????????? | | ????????????##### ####? #??????????????????? | | ????????????# #?#####?? =#??????????????????? | | ????????????###?# # ### %#??????????????????? | | ????????????????# ### ug=#??????????????????? | | ????????????????#### %!g #??????????????????? | | ??????????????????##@ #??????????????????? | | ???????????????????# #?????????????????? | | ???????????????????# r#?????????????????? | | ???????????????????# #?????????????????? | | ??????????????????? #?????????????????? | | ??????????????????? #?????????????????? | | ???????????????????## #????????????????? | | ?????????????????????### ???????????????? | | ????????????????????????# t ??????????????? | | ?????????????????????????## #?????????????? | | ???????????????????????????# #?????????????? | | ???????????????????????????? #?????????????? | | ????????????????????????????? ??????????????? | | ????????????????????????????????????????????? | | ????????????????????????????????????????????? | | ????????????????????????????????????????????? | | ????????????????????????????????????????????? | | ????????????????????????????????????????????? | | ????????????????????????????????????????????? | | ????????????????????????????????????????????? | | ????????????????????????????????????????????? | | ????????????????????????????????????????????? | | ????????????????????????????????????????????? | | ????????????????????????????????????????????? | | ????????????????????????????????????????????? | +----------------------------------------------------+ Best States ------------- Heat Dissipation 25 Energy Generation 10 Energy Capacity 125 Matter Stores 300 Matter Capacity 300 Sight Range 16 Terrain Scan Range 16 Terrain Scan Density 10 Evasion (%) 55 Item Schematics ----------------- None Robot Schematics ------------------ None Fabricated ------------ Nothing Repaired ---------- Nothing Alien Tech Used ----------------- None Achievements -------------- root@ Challenges ------------ None Game ------ Seed SapperProcessingAmplifier Manual? 0 Play Time 00:34:30 Cumulative 22.5 hours Start 2025.08.06 @ 14:19:35 End 2025.08.06 @ 14:55:46 Sessions 1 Manual Loads 0 Difficulty Rogue Special Mode None Game No. 44 Rogue 41 Adventurer 3 Explorer 0 Win Type - Total 0 Types 0/0/0/0/0/0/0/0/0/0 Lore% 14 Gallery% 19 Achievement% 20 Wizard Run 0 Options --------- Layout 1 ASCII 0 Keyboard 0 Movement Mouse Keybinds 0 Fullscreen 1 Font 24/Smallcaps Map View 50x35 Zoom Use 0% Tactical HUD 0 Map Filters NONE Filters NONE Steam 1 RUN: 8b0e643f-92e8-400c-a56e-d3d207a774c8